bitfinex/quotes_BTCUSD_20251009
["timestamp","ask_amount","ask_price","bid_price","bid_amount"]
[1760011845294,0.10231064,123030.0,123020.0,6.62041957]
[1760011845878,0.10231064,123030.0,123020.0,1.62041957]
[1760011846091,0.10231064,123030.0,123020.0,6.62041957]
[1760011846268,0.10231064,123030.0,123020.0,6.62841957]
[1760011846597,0.10231064,123030.0,123020.0,1.62841957]
[1760011846733,0.10231064,123030.0,123020.0,6.62841957]
[1760011848124,0.10231064,123030.0,123020.0,1.62841957]
[1760011848588,0.10231064,123030.0,123020.0,6.62841957]
[1760011849569,0.10231064,123030.0,123020.0,1.62841957]
[1760011849834,0.10231064,123030.0,123020.0,6.65341956]
[1760011850041,0.10231064,123030.0,123020.0,6.67263283]
[1760011850475,0.10231064,123030.0,123020.0,6.67663283]
[1760011850689,0.10231064,123030.0,123020.0,1.67663283]
[1760011850912,0.10231064,123030.0,123020.0,1.67463283]
[1760011851132,0.10231064,123030.0,123020.0,6.67463283]
[1760011851341,0.10231064,123030.0,123020.0,6.67663283]
[1760011851981,0.10231064,123030.0,123020.0,1.67663283]
[1760011852216,0.10231064,123030.0,123020.0,6.67663283]
[1760011853910,0.10231064,123030.0,123020.0,1.67663283]
[1760011854121,0.10231064,123030.0,123020.0,6.67663283]
[1760011854331,0.10231064,123030.0,123020.0,6.66863283]
[1760011854551,0.10231064,123030.0,123020.0,1.66863283]
[1760011854759,0.10231064,123030.0,123020.0,6.64541956]
[1760011854963,0.10231064,123030.0,123020.0,5.64489956]
[1760011855180,0.10231064,123030.0,123020.0,6.64365956]
[1760011855799,0.10231064,123030.0,123020.0,1.64365956]
[1760011856024,0.10231064,123030.0,123020.0,6.64365956]
[1760011856273,0.10231064,123030.0,123020.0,6.66805338]
[1760011857081,0.10231064,123030.0,123020.0,1.66805338]
[1760011857343,0.10231064,123030.0,123020.0,6.66805338]
[1760011857893,0.10231064,123030.0,123020.0,1.66805338]
[1760011858121,0.10231064,123030.0,123020.0,6.66805338]
[1760011858496,0.10231064,123030.0,123020.0,1.66805338]
[1760011858698,0.10231064,123030.0,123020.0,6.66805338]
[1760011858927,0.10231064,123030.0,123020.0,1.66805338]
[1760011859124,0.10231064,123030.0,123020.0,6.66805338]
[1760011859288,0.10231064,123030.0,123020.0,6.67605338]
[1760011860521,0.09731064,123030.0,123020.0,6.67605338]
[1760011861564,0.09731064,123030.0,123020.0,1.67605338]
[1760011861760,0.09731064,123030.0,123020.0,6.67605338]
[1760011861964,0.09731064,123030.0,123020.0,1.67605338]
[1760011862311,0.09731064,123030.0,123020.0,6.67605338]
[1760011863816,0.09731064,123030.0,123020.0,1.67605338]
[1760011864029,0.09731064,123030.0,123020.0,6.67605338]
[1760011864242,0.09731064,123030.0,123020.0,6.67521338]
[1760011864909,0.09731064,123030.0,123020.0,1.66721338]
[1760011865093,0.09731064,123030.0,123020.0,6.66721338]
[1760011865362,0.09731064,123030.0,123020.0,6.93401338]
[1760011865972,0.09731064,123030.0,123020.0,6.95883753]
[1760011867054,0.09731064,123030.0,123020.0,1.95883753]
[1760011867224,0.09731064,123030.0,123020.0,6.95883753]
[1760011867434,0.09731064,123030.0,123020.0,1.95883753]
[1760011867650,0.09731064,123030.0,123020.0,6.95883753]
[1760011868087,0.05692447,123060.0,123050.0,0.53268745]
[1760011868303,1e-08,123060.0,123050.0,5.9704495]
[1760011869001,1e-08,123060.0,123050.0,5.99483681]
[1760011869212,1e-08,123060.0,123050.0,5.7337887]
[1760011869418,0.00174949,123070.0,123060.0,5.3701519]
[1760011869628,0.00174949,123070.0,123060.0,5.69067396]
[1760011869839,0.00174949,123070.0,123060.0,5.45327396]
[1760011870256,0.00174949,123070.0,123060.0,6.45115396]
[1760011870467,0.18593863,123070.0,123060.0,0.83177496]
[1760011870671,0.23292863,123070.0,123060.0,1.26185238]
[1760011870874,0.23292863,123070.0,123060.0,0.60201238]
[1760011871081,0.23292863,123070.0,123060.0,0.84565248]
[1760011871279,0.23292863,123070.0,123060.0,1.41465948]
[1760011871691,0.23292863,123070.0,123060.0,1.44481138]
[1760011871897,0.20099863,123070.0,123060.0,1.44581138]
[1760011873290,0.23292863,123070.0,123060.0,1.44581138]
[1760011873908,0.23292863,123070.0,123060.0,0.44597138]
[1760011874119,0.23292863,123070.0,123060.0,0.50765248]
[1760011874323,0.23292863,123070.0,123060.0,1.08485248]
[1760011874526,0.23494542,123070.0,123060.0,1.11500438]
[1760011876325,0.23494542,123070.0,123060.0,0.77500438]
[1760011881562,2.23494542,123070.0,123060.0,0.77500438]
[1760011882225,2.23494542,123070.0,123060.0,0.11532438]
[1760011882423,2.23494542,123070.0,123060.0,0.77448438]
[1760011884754,2.23494542,123070.0,123060.0,1.87313138]
[1760011884975,2.04050628,123070.0,123060.0,1.99989472]
[1760011885311,2.00376628,123070.0,123060.0,1.99989472]
[1760011886714,2.00376628,123070.0,123060.0,5.98326287]
[1760011886920,2.00376628,123070.0,123060.0,6.17931587]
[1760011887120,2.00376628,123070.0,123060.0,1.30183087]
[1760011887358,2.00376628,123070.0,123060.0,6.30183087]
[1760011888048,2.00376628,123070.0,123060.0,4.77175572]
[1760011888252,2.00376628,123070.0,123060.0,4.92960272]
[1760011888431,2.00376628,123070.0,123060.0,4.97243772]
[1760011888632,2.00376628,123070.0,123060.0,1.27700672]
[1760011888893,2.00376628,123070.0,123060.0,4.77570572]
[1760011889096,2.00376628,123070.0,123060.0,4.45079172]
[1760011889277,2.00376628,123070.0,123060.0,1.27700672]
[1760011889513,2.00376628,123070.0,123060.0,4.88724772]
[1760011889888,2.00376628,123070.0,123060.0,4.73725772]
[1760011890126,2.00376628,123070.0,123060.0,4.71630872]
[1760011890342,2.00376628,123070.0,123060.0,4.45212782]
[1760011890551,2.00376628,123070.0,123060.0,4.38719882]
[1760011890726,2.00376628,123070.0,123060.0,1.27698282]
[1760011891247,2.00376628,123070.0,123060.0,4.71545682]
[1760011891442,2.00376628,123070.0,123060.0,4.69360582]
[1760011891590,2.00376628,123070.0,123060.0,1.27698282]
[1760011891810,2.00376628,123070.0,123060.0,4.64871482]
[1760011892017,2.02401628,123070.0,123060.0,1.27698282]
[1760011892218,2.02401628,123070.0,123060.0,4.94434482]
[1760011892420,2.02401628,123070.0,123060.0,1.27698282]
[1760011892619,2.03962628,123070.0,123060.0,1.27698282]
[1760011892831,2.03962628,123070.0,123060.0,4.92941882]
[1760011893074,2.03962628,123070.0,123060.0,4.89817582]
[1760011893251,2.03962628,123070.0,123060.0,4.92804982]
[1760011893464,2.03962628,123070.0,123060.0,4.92846082]
[1760011893675,2.03962628,123070.0,123060.0,4.26896882]
[1760011893825,2.03962628,123070.0,123060.0,4.72946082]
[1760011894025,2.03962628,123070.0,123060.0,1.27630282]
[1760011894226,2.03962628,123070.0,123060.0,4.94411782]
[1760011894472,2.03962628,123070.0,123060.0,1.27630282]
[1760011894711,2.03962628,123070.0,123060.0,1.27626282]
[1760011894858,2.03962628,123070.0,123060.0,4.75194382]
[1760011895224,2.03962628,123070.0,123060.0,4.72357682]
[1760011895424,2.03962628,123070.0,123060.0,4.72671582]
[1760011895733,2.03962628,123070.0,123060.0,4.06522082]
[1760011895935,2.03962628,123070.0,123060.0,4.75353782]
[1760011896134,2.03962628,123070.0,123060.0,4.58647082]
[1760011896336,2.03962628,123070.0,123060.0,4.61091382]
[1760011896560,2.03962628,123070.0,123060.0,4.61340182]
[1760011896771,2.03962628,123070.0,123060.0,4.61325682]
[1760011896974,2.03962628,123070.0,123060.0,4.61327582]
[1760011897186,2.03962628,123070.0,123060.0,4.76376682]
[1760011897393,2.03962628,123070.0,123060.0,4.66903282]
[1760011897602,2.03962628,123070.0,123060.0,4.66903082]
[1760011898017,2.03962628,123070.0,123060.0,1.27618282]
[1760011898446,2.03962628,123070.0,123060.0,4.93687182]
[1760011898647,2.01937628,123070.0,123060.0,5.30288482]
[1760011898854,2.01937628,123070.0,123060.0,5.30573582]
[1760011899057,2.01937628,123070.0,123060.0,5.30587782]
[1760011899271,2.01937628,123070.0,123060.0,5.51667382]
[1760011899487,2.01937628,123070.0,123060.0,5.43564182]
[1760011899697,2.01937628,123070.0,123060.0,5.51690282]
[1760011899921,2.00376628,123070.0,123060.0,1.27618282]
[1760011900728,2.00376628,123070.0,123060.0,6.05724082]
[1760011900973,2.00376628,123070.0,123060.0,5.73345082]
[1760011901218,2.00376628,123070.0,123060.0,5.51204482]
[1760011901454,2.00376628,123070.0,123060.0,1.27618282]
[1760011902166,2.00376628,123070.0,123060.0,6.27618282]
[1760011902395,2.00376628,123070.0,123060.0,6.32539486]
[1760011902874,2.00376628,123070.0,123060.0,6.32439486]
[1760011903324,2.00376628,123070.0,123060.0,6.32539486]
[1760011903517,2.00376628,123070.0,123060.0,6.30057071]
[1760011903745,2.00376628,123070.0,123060.0,6.29957071]
[1760011903963,2.00376628,123070.0,123060.0,1.29857071]
[1760011904189,2.00376628,123070.0,123060.0,6.29857071]
[1760011904427,2.00376628,123070.0,123060.0,6.29957071]
[1760011904647,2.00376628,123070.0,123060.0,1.29957071]
[1760011904852,2.00376628,123070.0,123060.0,6.29957071]
[1760011905087,2.00376628,123070.0,123060.0,6.30057071]
[1760011905539,2.00376628,123070.0,123060.0,1.30057071]
[1760011905760,2.00376628,123070.0,123060.0,5.92220971]
[1760011905948,2.00376628,123070.0,123060.0,5.97753271]
[1760011906187,2.00376628,123070.0,123060.0,5.99841471]
[1760011906369,2.00376628,123070.0,123060.0,6.00972871]
[1760011906519,2.02373628,123070.0,123060.0,6.00972971]
[1760011906720,2.02373628,123070.0,123060.0,6.00972871]
[1760011906921,2.00376628,123070.0,123060.0,6.01615871]
[1760011907163,2.00376628,123070.0,123060.0,6.63797071]
[1760011908113,2.00376628,123070.0,123060.0,6.46336171]
[1760011908320,2.00376628,123070.0,123060.0,6.54550871]
[1760011908530,2.00376628,123070.0,123060.0,6.64597071]
[1760011908765,2.00376628,123070.0,123060.0,6.43930771]
[1760011908911,2.00376628,123070.0,123060.0,1.64597071]
[1760011909102,2.00376628,123070.0,123060.0,6.63777871]
[1760011909306,2.00376628,123070.0,123060.0,1.64597071]
[1760011909501,2.00376628,123070.0,123060.0,6.47387971]
[1760011909706,2.00376628,123070.0,123060.0,6.52676571]
[1760011909968,2.00376628,123070.0,123060.0,1.64597071]
[1760011910558,2.00376628,123070.0,123060.0,6.64597071]
[1760011912073,2.00376628,123070.0,123060.0,1.64597071]
[1760011912282,2.00376628,123070.0,123060.0,6.64597071]
[1760011914217,2.00376628,123070.0,123060.0,1.64597071]
[1760011914416,2.00376628,123070.0,123060.0,6.64597071]
[1760011915008,2.00376628,123070.0,123060.0,1.64597071]
[1760011915215,2.00376628,123070.0,123060.0,6.64597071]
[1760011916225,2.00376628,123070.0,123060.0,1.64597071]
[1760011916430,2.00376628,123070.0,123060.0,6.64597071]
[1760011916653,2.00376628,123070.0,123060.0,1.64597071]
[1760011916818,2.00376628,123070.0,123060.0,6.64597071]
[1760011919399,2.00376628,123070.0,123060.0,6.6709707]
[1760011919989,2.00376628,123070.0,123060.0,1.6709707]
[1760011920162,2.00376628,123070.0,123060.0,5.6752107]
[1760011920364,2.00376628,123070.0,123060.0,6.6701707]
[1760011922569,2.00376628,123070.0,123060.0,1.6701707]
[1760011922772,2.00376628,123070.0,123060.0,6.6621707]
[1760011922941,2.00376628,123070.0,123060.0,1.6621707]
[1760011923104,2.00376628,123070.0,123060.0,6.6621707]
[1760011923739,2.00376628,123070.0,123060.0,1.6621707]
[1760011923963,2.00376628,123070.0,123060.0,6.6621707]
[1760011924370,2.00376628,123070.0,123060.0,1.6621707]
[1760011924566,2.00376628,123070.0,123060.0,6.6621707]
[1760011924783,2.00376628,123070.0,123060.0,6.9289707]
[1760011926058,2.00376628,123070.0,123060.0,1.9289707]
[1760011926264,2.00376628,123070.0,123060.0,6.9289707]
[1760011927918,2.00376628,123070.0,123060.0,6.9369707]
[1760011928130,2.00376628,123070.0,123060.0,1.9369707]
[1760011928306,2.00376628,123070.0,123060.0,6.9369707]
[1760011929181,2.00376628,123070.0,123060.0,1.9369707]
[1760011929379,2.00376628,123070.0,123060.0,6.9369707]
[1760011929838,2.00376628,123070.0,123060.0,1.9369707]
[1760011930036,2.00376628,123070.0,123060.0,6.9369707]
[1760011931608,2.00376628,123070.0,123060.0,1.9369707]
[1760011931997,2.00376628,123070.0,123060.0,6.9369707]
[1760011933235,2.00376628,123070.0,123060.0,6.9289707]
[1760011933656,2.00376628,123070.0,123060.0,1.9289707]
[1760011933869,2.00376628,123070.0,123060.0,6.9289707]
[1760011934919,2.00376628,123070.0,123060.0,1.9289707]
[1760011935109,2.00376628,123070.0,123060.0,6.9289707]
[1760011935334,2.00376628,123070.0,123060.0,1.9289707]
[1760011935816,2.00376628,123070.0,123060.0,6.9289707]
[1760011936027,2.00376628,123070.0,123060.0,1.9289707]
[1760011936217,2.00376628,123070.0,123060.0,6.9289707]
[1760011936640,2.00376628,123070.0,123060.0,1.9289707]
[1760011936838,2.00376628,123070.0,123060.0,6.9289707]
[1760011938219,2.00376628,123070.0,123060.0,6.9369707]
[1760011939780,2.00376628,123070.0,123060.0,6.6701707]
[1760011940187,2.00376628,123070.0,123060.0,1.6701707]
[1760011940417,2.00376628,123070.0,123060.0,6.6701707]
[1760011940594,2.00376628,123070.0,123060.0,1.6701707]
[1760011940782,2.00376628,123070.0,123060.0,6.6701707]
[1760011940979,2.00376628,123070.0,123060.0,1.6701707]
[1760011941168,2.00376628,123070.0,123060.0,6.6701707]
[1760011941369,2.00376628,123070.0,123060.0,6.2470507]
[1760011941731,2.00376628,123070.0,123060.0,6.6694507]
[1760011942141,1.61968604,123070.0,123060.0,6.69152485]
[1760011942756,1.61968604,123070.0,123060.0,6.69052485]
[1760011943173,1.61968604,123070.0,123060.0,6.69152485]
[1760011943596,1.61968604,123070.0,123060.0,6.68552485]
[1760011944850,1.61968604,123070.0,123060.0,5.69128485]
[1760011945030,1.61968604,123070.0,123060.0,6.68552485]
[1760011947667,1.61968604,123070.0,123060.0,1.68552485]
[1760011947873,1.61968604,123070.0,123060.0,6.68552485]
[1760011948477,1.61968604,123070.0,123060.0,1.68552485]
[1760011948724,1.61968604,123070.0,123060.0,1.69352485]
[1760011949483,1.61968604,123070.0,123060.0,6.69352485]
[1760011950255,1.61968604,123070.0,123060.0,1.69352485]
[1760011950468,1.61968604,123070.0,123060.0,6.69352485]
[1760011950659,1.59532056,123070.0,123060.0,6.69352485]
[1760011951263,0.83897383,123070.0,123060.0,6.79352484]
[1760011951479,0.09088659,123080.0,123070.0,1.15766103]
[1760011951696,0.01658,123130.0,123070.0,1.15766103]
[1760011951697,0.09404624,123160.0,123140.0,0.03386433]
[1760011951902,0.04826595,123150.0,123140.0,1.83467315]
[1760011952315,0.04826595,123150.0,123140.0,2.96014415]
[1760011952532,0.03299595,123150.0,123140.0,1.19132315]
[1760011952737,0.03299595,123150.0,123140.0,1.90820715]
[1760011952943,0.03350367,123150.0,123140.0,2.62242615]
[1760011953148,0.21117724,123150.0,123140.0,0.58538839]
[1760011953360,0.21117724,123150.0,123140.0,0.51721734]
[1760011953563,0.21117724,123150.0,123140.0,1.17349734]
[1760011953787,0.24327724,123150.0,123140.0,1.17349734]
[1760011953992,0.24327724,123150.0,123140.0,0.51921734]
[1760011954193,0.24327724,123150.0,123140.0,1.17445734]
[1760011954598,0.24327724,123150.0,123140.0,1.17345734]
[1760011954804,0.24327724,123150.0,123140.0,1.17445734]
[1760011955214,0.24327724,123150.0,123140.0,1.17345734]
[1760011955595,0.24327724,123150.0,123140.0,0.51921734]
[1760011955810,0.24327724,123150.0,123140.0,0.75309734]
[1760011956031,0.24327724,123150.0,123140.0,1.17441734]
[1760011956237,0.24327724,123150.0,123140.0,1.17541734]
[1760011957265,0.24730754,123150.0,123140.0,1.17541734]
[1760011957678,0.08490397,123150.0,123140.0,1.3378341]
[1760011958841,0.08490397,123150.0,123140.0,2.7810961]
[1760011959043,0.08490397,123150.0,123140.0,1.3378341]
[1760011959255,0.08490397,123150.0,123140.0,2.6890511]
[1760011959455,0.05280397,123150.0,123140.0,2.5799521]
[1760011959661,0.08490397,123150.0,123140.0,2.5799511]
[1760011959964,0.08490397,123150.0,123140.0,2.5799521]
[1760011960161,0.08490397,123150.0,123140.0,2.5799531]
[1760011960402,0.05280397,123150.0,123140.0,1.3378341]
[1760011960604,0.05280397,123150.0,123140.0,3.6307091]
[1760011960809,0.05280397,123150.0,123140.0,3.6312821]
[1760011961118,0.05280397,123150.0,123140.0,3.5029301]
[1760011961419,0.05280397,123150.0,123140.0,3.4947231]
[1760011961642,0.05280397,123150.0,123140.0,3.3939761]
[1760011961799,0.05280397,123150.0,123140.0,3.1690091]
[1760011962155,0.05280397,123150.0,123140.0,1.3378341]
[1760011962330,0.05280397,123150.0,123140.0,3.3190091]
[1760011962549,0.05280397,123150.0,123140.0,4.2192711]
[1760011962738,0.05280397,123150.0,123140.0,1.3378341]
[1760011962913,0.05280397,123150.0,123140.0,4.2352411]
[1760011963153,0.05280397,123150.0,123140.0,4.1839911]
[1760011963333,0.05280397,123150.0,123140.0,1.3378341]
[1760011963535,0.05280397,123150.0,123140.0,3.9795801]
[1760011963937,0.05280397,123150.0,123140.0,4.0508781]
[1760011964145,0.05280397,123150.0,123140.0,1.3378341]
[1760011964426,0.03208397,123150.0,123140.0,4.0498781]
[1760011964585,0.03208397,123150.0,123140.0,1.3368341]
[1760011964790,0.03208397,123150.0,123140.0,4.0466111]
[1760011965196,0.01681397,123150.0,123140.0,1.3368341]
[1760011965403,0.01681397,123150.0,123140.0,4.0756011]
[1760011965600,0.01681397,123150.0,123140.0,3.6128661]
[1760011965808,0.04111397,123150.0,123140.0,3.6881101]
[1760011966027,0.04111397,123150.0,123140.0,1.3378341]
[1760011966388,0.06106397,123150.0,123140.0,3.5511561]
[1760011966640,0.06106397,123150.0,123140.0,4.0421681]
[1760011966816,0.06106397,123150.0,123140.0,4.0616041]
[1760011967151,0.01681397,123150.0,123140.0,1.3378341]
[1760011967335,0.01681397,123150.0,123140.0,4.0397111]
[1760011967535,0.01681397,123150.0,123140.0,4.0397211]
[1760011967740,0.01681397,123150.0,123140.0,1.3378341]
[1760011967944,0.01681397,123150.0,123140.0,4.3161641]
[1760011968124,0.01681397,123150.0,123140.0,5.3433121]
[1760011968460,0.01681397,123150.0,123140.0,6.21142797]
[1760011968600,0.01681397,123150.0,123140.0,1.36165797]
[1760011968798,0.01681397,123150.0,123140.0,6.57352897]
[1760011969020,0.01681397,123150.0,123140.0,6.65696897]
[1760011969269,0.01310154,123150.0,123140.0,6.65325654]
[1760011969463,0.01310154,123150.0,123140.0,1.69574554]
[1760011969608,0.01310154,123150.0,123140.0,6.65325654]
[1760011970153,0.01310154,123150.0,123140.0,6.67525691]
[1760011970323,0.01310154,123150.0,123140.0,6.67625691]
[1760011971556,0.01310154,123150.0,123140.0,6.56683304]
[1760011971759,0.01310154,123150.0,123140.0,6.30236604]
[1760011971964,0.01310154,123150.0,123140.0,5.14711304]
[1760011972188,0.01310154,123150.0,123140.0,6.40750004]
[1760011972398,0.01310154,123150.0,123140.0,1.69368204]
[1760011972721,0.01310154,123150.0,123140.0,5.66543304]
[1760011972918,0.01310154,123150.0,123140.0,6.65919304]
[1760011973506,0.01310154,123150.0,123140.0,6.68417691]
[1760011973656,0.01310154,123150.0,123140.0,1.72666591]
[1760011973862,0.01310154,123150.0,123140.0,6.68417691]
[1760011974708,0.01310154,123150.0,123140.0,6.46263391]
[1760011974888,0.01310154,123150.0,123140.0,6.68417691]
[1760011975315,0.01310154,123150.0,123140.0,6.55007391]
[1760011975722,0.01310154,123150.0,123140.0,6.45791591]
[1760011975920,0.01310154,123150.0,123140.0,5.75179391]
[1760011976240,0.01310154,123150.0,123140.0,6.11182491]
[1760011976451,0.01310154,123150.0,123140.0,6.26167254]
[1760011976689,0.01310154,123150.0,123140.0,6.19933654]
[1760011976901,0.01310154,123150.0,123140.0,6.22103054]
[1760011977042,0.01310154,123150.0,123140.0,1.70462554]
[1760011977257,0.01310154,123150.0,123140.0,6.38756654]
[1760011977456,0.01310154,123150.0,123140.0,6.50802654]
[1760011977657,0.01310154,123150.0,123140.0,1.62018554]
[1760011977906,0.01310154,123150.0,123140.0,1.70462554]
[1760011978139,0.01310154,123150.0,123140.0,4.90058354]
[1760011978342,0.01310154,123150.0,123140.0,5.06935854]
[1760011978554,0.01310154,123150.0,123140.0,5.00844854]
[1760011978681,0.01310154,123150.0,123140.0,1.70462554]
[1760011978881,0.01310154,123150.0,123140.0,4.19943854]
[1760011979134,0.01310154,123150.0,123140.0,5.25518454]
[1760011979355,0.01310154,123150.0,123140.0,1.70462554]
[1760011979882,0.01310154,123150.0,123140.0,5.67521354]
[1760011980187,0.01310154,123150.0,123140.0,4.46565254]
[1760011980394,0.25785511,123150.0,123140.0,0.57555301]
[1760011980604,0.09545154,123150.0,123140.0,1.10329977]
[1760011981441,0.25785511,123150.0,123140.0,1.10329977]
[1760011981654,0.25785511,123150.0,123140.0,0.18350491]
[1760011981872,0.25785511,123150.0,123140.0,0.83946491]
[1760011982298,0.25785511,123150.0,123140.0,1.11219167]
[1760011982714,0.25785511,123150.0,123140.0,0.83846491]
[1760011983137,0.25785511,123150.0,123140.0,0.83946491]
[1760011983356,0.26545306,123150.0,123140.0,0.83846491]
[1760011983560,0.25785511,123150.0,123140.0,0.83946491]
[1760011984155,0.25785511,123150.0,123140.0,0.83846491]
[1760011984374,0.25785511,123150.0,123140.0,0.83946491]
[1760011984782,0.25785511,123150.0,123140.0,0.83846491]
[1760011984982,0.25785511,123150.0,123140.0,0.18250491]
[1760011985195,0.65073139,123150.0,123140.0,0.08512206]
[1760011985404,0.65073139,123150.0,123090.0,0.32264686]
[1760011985405,0.16245633,123110.0,123090.0,0.65228273]
[1760011985616,0.08235,123100.0,123090.0,1.60797573]
[1760011985838,0.08235,123100.0,123090.0,1.23928479]
[1760011986039,0.04411,123100.0,123090.0,2.85621079]
[1760011986251,0.04411,123100.0,123090.0,2.74483579]
[1760011986460,0.08235,123100.0,123090.0,2.02363679]
[1760011986697,0.08235,123100.0,123090.0,2.11589922]
[1760011986901,0.08235,123100.0,123090.0,1.33271022]
[1760011987106,0.08235,123100.0,123090.0,2.30895222]
[1760011987529,0.08235,123100.0,123090.0,2.30685222]
[1760011987741,0.08235,123100.0,123090.0,1.33271022]
[1760011987958,0.08235,123100.0,123090.0,2.3078514]
[1760011988399,0.08235,123100.0,123090.0,2.3069494]
[1760011988605,0.08235,123100.0,123090.0,2.1925744]
[1760011988807,0.08235,123100.0,123090.0,2.1535324]
[1760011989494,0.08235,123100.0,123090.0,1.3337094]
[1760011989708,0.08235,123100.0,123090.0,2.1535324]
[1760011989916,0.08235,123100.0,123090.0,2.1751364]
[1760011990123,0.08235,123100.0,123090.0,1.3337094]
[1760011990339,0.08235,123100.0,123090.0,2.1727364]
[1760011990539,0.08235,123100.0,123090.0,2.1722094]
[1760011990965,0.08386198,123100.0,123090.0,2.1717674]
[1760011991166,0.08386198,123100.0,123090.0,2.7019534]
[1760011991374,0.08386198,123100.0,123090.0,2.7018934]
[1760011992001,0.08386198,123100.0,123090.0,2.7028934]
[1760011996576,0.04562198,123100.0,123090.0,2.7028934]
[1760012000765,0.04562198,123100.0,123090.0,0.14739559]
[1760012000766,0.24633151,123100.0,123090.0,0.14739559]
[1760012000996,0.24633151,123100.0,123090.0,0.74125248]
[1760012001212,0.28914036,123100.0,123090.0,0.50749248]
[1760012001427,0.24633151,123100.0,123090.0,0.74125248]
[1760012002130,0.24633151,123100.0,123090.0,0.74025248]
[1760012002764,0.24633151,123100.0,123090.0,0.73925248]
[1760012012215,0.26147788,123100.0,123090.0,0.73925248]
[1760012014326,0.26150053,123100.0,123090.0,0.93188711]
[1760012014528,0.099031,123100.0,123090.0,0.93188711]
[1760012014734,0.08446198,123100.0,123090.0,0.76940438]
[1760012014937,0.24693151,123100.0,123090.0,0.76940438]
[1760012029049,0.24693151,123100.0,123090.0,0.93188711]
[1760012029273,0.24693151,123100.0,123090.0,0.76940438]
[1760012029694,0.24693151,123100.0,123090.0,0.93188711]
[1760012029876,0.24693151,123100.0,123090.0,0.76940438]
[1760012034689,0.24693151,123100.0,123090.0,0.08317248]
[1760012034913,0.24693151,123100.0,123090.0,0.40133248]
[1760012035350,0.24693151,123100.0,123090.0,0.08317248]
[1760012035565,0.24693151,123100.0,123090.0,0.40133248]
[1760012037818,0.24693151,123100.0,123090.0,0.08317248]
[1760012038009,0.27434779,123100.0,123090.0,0.40129248]
[1760012040206,0.27434779,123100.0,123090.0,0.16765248]
[1760012040425,0.60876413,123100.0,123090.0,5.042e-05]
[1760012040623,0.60876413,123100.0,123090.0,0.13041042]
[1760012040624,0.94876413,123100.0,123090.0,0.13041042]
[1760012041056,0.61434779,123100.0,123090.0,0.13041042]
[1760012041272,0.94876413,123100.0,123090.0,5.042e-05]
[1760012041558,0.94876413,123100.0,123090.0,0.01081042]
[1760012043789,0.94976413,123100.0,123090.0,0.01081042]
[1760012045947,0.94976413,123100.0,123090.0,5.042e-05]
[1760012047538,0.61534779,123100.0,123090.0,5.042e-05]
[1760012047756,0.58793151,123100.0,123090.0,5.042e-05]
[1760012047964,0.58793151,123100.0,123090.0,0.08317248]
[1760012048178,0.24793151,123100.0,123090.0,0.08317248]
[1760012050203,0.24693151,123100.0,123090.0,0.08317248]
[1760012050423,0.24693151,123100.0,123090.0,0.27580711]
[1760012050424,0.04562198,123100.0,123090.0,0.27580711]
[1760012050636,0.20809151,123100.0,123090.0,0.27580711]
[1760012051057,0.24427151,123100.0,123090.0,0.27580711]
[1760012051269,0.24427151,123100.0,123090.0,0.11332438]
[1760012052536,0.24427151,123100.0,123090.0,0.08317248]
[1760012052753,0.24427151,123100.0,123090.0,0.40125248]
[1760012059426,0.24427151,123100.0,123090.0,0.40121248]
[1760012059630,0.28687439,123100.0,123090.0,0.40121248]
[1760012059832,0.78858679,123100.0,123090.0,0.08453042]
[1760012060042,0.78858679,123100.0,123090.0,0.31809042]
[1760012060223,0.53773059,123100.0,123090.0,0.31809042]
[1760012061022,0.53873059,123100.0,123090.0,0.31809042]
[1760012061447,0.28787439,123100.0,123090.0,0.31809042]
[1760012061824,0.53873059,123100.0,123090.0,0.31809042]
[1760012065189,0.28787439,123100.0,123090.0,0.31809042]
[1760012065438,0.53873059,123100.0,123090.0,0.31809042]
[1760012067548,0.28787439,123100.0,123090.0,0.31809042]
[1760012067753,0.53873059,123100.0,123090.0,0.31809042]
[1760012068094,0.53873059,123100.0,123090.0,5.042e-05]
[1760012068095,1.12958679,123100.0,123090.0,5.042e-05]
[1760012068300,1.12958679,123100.0,123090.0,0.23357042]
[1760012069720,0.87873059,123100.0,123090.0,0.23357042]
[1760012074468,1.12958679,123100.0,123090.0,0.23357042]
[1760012075398,0.87873059,123100.0,123090.0,0.23357042]
[1760012077371,1.12958679,123100.0,123090.0,0.23357042]
[1760012081843,1.12958679,123100.0,123090.0,5.042e-05]
[1760012082049,1.12958679,123100.0,123090.0,0.23349042]
[1760012083323,0.83612771,123100.0,123090.0,0.23349042]
[1760012086979,0.58527151,123100.0,123090.0,0.23349042]
[1760012087112,0.83612771,123100.0,123090.0,0.23349042]
[1760012087961,0.58527151,123100.0,123090.0,0.23349042]
[1760012088212,0.83612771,123100.0,123090.0,0.23349042]
[1760012088420,0.58527151,123100.0,123090.0,0.23349042]
[1760012088602,0.83612771,123100.0,123090.0,0.23349042]
[1760012088813,0.91526998,123100.0,123090.0,0.23349042]
[1760012089241,0.83612771,123100.0,123090.0,0.23349042]
[1760012091297,0.83612771,123100.0,123090.0,5.042e-05]
[1760012091298,1.57120011,123100.0,123090.0,5.042e-05]
[1760012091505,0.50249593,123080.0,123070.0,0.23336]
[1760012091708,1.02147833,123080.0,123070.0,0.23341042]
[1760012091922,1.07953833,123080.0,123070.0,5.042e-05]
[1760012092120,1.17476657,123080.0,123070.0,0.23341042]
[1760012092991,1.17476657,123080.0,123070.0,5.042e-05]
[1760012093194,1.17476657,123080.0,123070.0,0.23341042]
[1760012093401,0.59305737,123080.0,123070.0,0.23341042]
[1760012093609,0.57782593,123080.0,123070.0,0.23341042]
[1760012094456,0.82868213,123080.0,123070.0,0.23341042]
[1760012094858,0.83068213,123080.0,123070.0,0.23341042]
[1760012095191,0.57982593,123080.0,123070.0,0.23341042]
[1760012095398,0.65982273,123080.0,123070.0,0.23341042]
[1760012096432,0.65982273,123080.0,123070.0,0.23337042]
[1760012096433,0.91067893,123080.0,123070.0,0.23337042]
[1760012097172,0.93557967,123080.0,123070.0,0.23337042]
[1760012097634,0.68472347,123080.0,123070.0,0.23337042]
[1760012097885,0.93557967,123080.0,123070.0,0.23337042]
[1760012098327,1.18643587,123080.0,123070.0,5.042e-05]
[1760012098535,0.93557967,123080.0,123070.0,0.23337042]
[1760012100282,0.93557967,123080.0,123070.0,5.042e-05]
[1760012100571,1.18643587,123080.0,123070.0,5.042e-05]
[1760012100753,1.43495647,123080.0,123070.0,5.042e-05]
[1760012101341,1.51807853,123080.0,123070.0,5.042e-05]
[1760012101707,1.61807852,123080.0,123070.0,5.042e-05]
[1760012104094,1.61806714,123080.0,123070.0,5.042e-05]
[1760012104753,1.51806715,123080.0,123070.0,5.042e-05]
[1760012104970,1.61806714,123080.0,123070.0,5.042e-05]
[1760012108867,2.06266714,123080.0,123070.0,5.042e-05]
[1760012109158,1.82934714,123080.0,123070.0,5.042e-05]
[1760012109377,2.06262714,123080.0,123070.0,5.042e-05]
[1760012110452,1.82934714,123080.0,123070.0,5.042e-05]
[1760012110665,2.06262714,123080.0,123070.0,5.042e-05]
[1760012111319,1.82934714,123080.0,123070.0,5.042e-05]
[1760012111520,2.06262714,123080.0,123070.0,5.042e-05]